fUST/lending_fUST_20241227
["ID","MTS","AMOUNT","RATE_DAILY","PERIOD"]
[346739602,1735258248757,-745.7,0.00015917,2]
[346739603,1735258248767,-500.0,0.00015917,2]
[346739604,1735258248778,-541.56,0.00015917,2]
[346739605,1735258248788,-500.0,0.00015917,2]
[346739606,1735258248797,-1228.72,0.00015917,2]
[346739607,1735258248807,-500.0,0.00015917,2]
[346739608,1735258248817,-645.88,0.00015917,2]
[346739609,1735258248827,-829.78,0.00015917,2]
[346739610,1735258248836,-500.0,0.00015928,2]
[346739611,1735258248846,-500.0,0.00015928,2]
[346739612,1735258248855,-546.86,0.00015928,2]
[346739613,1735258248866,-567.61,0.00015928,2]
[346739614,1735258248875,-500.0,0.00015929,2]
[346739615,1735258248885,-529.08,0.00015929,2]
[346739616,1735258248896,-1124.18,0.00015929,2]
[346739617,1735258248906,-751.23,0.00015929,2]
[346739618,1735258248917,-1067.53,0.00015929,2]
[346739619,1735258248927,-660.7,0.00015929,2]
[346739620,1735258248937,-546.97,0.00015929,2]
[346739621,1735258248947,-500.0,0.00015929,2]
[346739622,1735258248956,-500.0,0.00015929,2]
[346739623,1735258248966,-562.36,0.00015929,2]
[346739624,1735258248976,-500.0,0.00015929,2]
[346739625,1735258248988,-264.465561,0.00015929,2]
[346739626,1735258248997,-878.96,0.00015929,2]
[346739627,1735258249007,-1897.86,0.00015929,2]
[346739628,1735258249016,-500.0,0.00015929,2]
[346739629,1735258249025,-535.63,0.00015929,2]
[346739630,1735258249035,-500.0,0.00015967,2]
[346739631,1735258249045,-178.09599835,0.00015967,2]
[346739632,1735258249054,-204.4609243,0.00015967,2]
[346739633,1735258249064,-151.0,0.00015968,2]
[346739634,1735258249074,-500.0,0.00015968,2]
[346739635,1735258249084,-500.0,0.00015968,2]
[346739636,1735258249093,-10231.13,0.00015968,2]
[346739637,1735258249103,-9072.08,0.0001597,2]
[346739638,1735258249113,-432.557,0.00016179,2]
[346739639,1735258249122,-500.0,0.00016188,2]
[346739640,1735258249132,-4828.29,0.00016188,2]
[346739641,1735258249144,-2652.63,0.00016188,2]
[346739642,1735258249153,-500.0,0.00016188,2]
[346739643,1735258249163,-249.05925508,0.00016188,2]
[346739644,1735258249173,-517.75,0.00016188,2]
[346739645,1735258249182,-500.0,0.00016189,2]
[346739646,1735258249192,-500.0,0.00016189,2]
[346739647,1735258249202,-641.65,0.00016189,2]
[346739648,1735258249211,-805.04,0.00016189,2]
[346739649,1735258249220,-500.0,0.00016189,2]
[346739650,1735258249232,-823.2,0.00016189,2]
[346739651,1735258249241,-500.0,0.00016189,2]
[346739652,1735258249251,-610.0,0.00016189,2]
[346739653,1735258249262,-500.0,0.00016189,2]
[346739654,1735258249272,-869.91,0.00016189,2]
[346739655,1735258249282,-500.0,0.00016189,2]
[346739656,1735258249292,-761.91,0.00016189,2]
[346739657,1735258249301,-500.0,0.00016189,2]
[346739658,1735258249311,-1506.17,0.00016189,2]
[346739659,1735258249321,-583.85,0.00016189,2]
[346739660,1735258249330,-521.29,0.00016189,2]
[346739661,1735258249340,-630.67,0.00016189,2]
[346739662,1735258249350,-634.49,0.00016189,2]
[346739663,1735258249359,-698.15,0.00016189,2]
[346739664,1735258249369,-764.49,0.00016189,2]
[346739665,1735258249379,-1033.19,0.00016189,2]
[346739666,1735258249389,-500.0,0.00016189,2]
[346739667,1735258249400,-1125.11,0.00016189,2]
[346739668,1735258249410,-500.0,0.00016189,2]
[346739669,1735258249420,-806.8,0.00016189,2]
[346739670,1735258249430,-500.0,0.00016189,2]
[346739671,1735258249440,-500.0,0.00016189,2]
[346739672,1735258249450,-500.0,0.00016189,2]
[346739673,1735258249460,-500.0,0.00016189,2]
[346739674,1735258249469,-605.5,0.00016189,2]
[346739675,1735258249483,-151.0,0.0001619,2]
[346739676,1735258249492,-19598.21,0.0001619,2]
[346739677,1735258249503,-737.31,0.0001619,2]
[346739678,1735258249513,-500.0,0.00016191,2]
[346739679,1735258249523,-745.7,0.00016191,2]
[346739680,1735258249533,-157.26,0.00016191,2]
[346739681,1735258249543,-541.56,0.00016191,2]
[346739682,1735258249552,-500.0,0.00016191,2]
[346739683,1735258249562,-1228.72,0.00016191,2]
[346739684,1735258249572,-500.0,0.00016191,2]
[346739685,1735258249581,-645.88,0.00016191,2]
[346739686,1735258249590,-829.78,0.00016191,2]
[346739687,1735258249600,-500.0,0.00016202,2]
[346739688,1735258249611,-500.0,0.00016202,2]
[346739689,1735258249620,-546.86,0.00016202,2]
[346739690,1735258249629,-567.61,0.00016202,2]
[346739691,1735258249639,-500.0,0.00016203,2]
[346739692,1735258249648,-529.08,0.00016203,2]
[346739693,1735258249657,-1124.18,0.00016203,2]
[346739694,1735258249666,-500.0,0.00016203,2]
[346739695,1735258249675,-751.23,0.00016203,2]
[346739696,1735258249684,-1067.53,0.00016203,2]
[346739697,1735258249693,-660.7,0.00016203,2]
[346739698,1735258249702,-546.97,0.00016203,2]
[346739699,1735258249712,-571.89,0.00016203,2]
[346739700,1735258249720,-291.95,0.00016203,2]
[346739701,1735258249731,-500.0,0.00016203,2]
[346739702,1735258249740,-562.36,0.00016203,2]
[346739703,1735258249749,-582.11959429,0.00016203,2]
[346739704,1735258249759,-878.96,0.00016203,2]
[346739705,1735258249768,-1897.86,0.00016203,2]
[346739706,1735258249845,-150.92,0.00016203,2]
[346739707,1735258249856,-535.63,0.00016203,2]
[346739708,1735258249865,-507.491,0.0001622,2]
[346739709,1735258249875,-500.0,0.00016242,2]
[346739710,1735258249886,-431.45048861,0.00016242,2]
[346739711,1735258249895,-10231.13,0.00016242,2]
[346739712,1735258249905,-500.0,0.00016243,2]
[346739713,1735258249914,-500.0,0.00016243,2]
[346739714,1735258249924,-538.06483054,0.00016243,2]
[346739715,1735258249933,-502.16890237,0.00016243,2]
[346739716,1735258249943,-525.26755996,0.00016243,2]
[346739717,1735258249953,-500.0,0.00016243,2]
[346739718,1735258249963,-500.0,0.00016243,2]
[346739719,1735258249973,-500.0,0.00016243,2]
[346739720,1735258249983,-150.0,0.00016243,2]
[346739721,1735258249993,-500.0,0.00016243,2]
[346739722,1735258250002,-9072.08,0.00016244,2]
[346739723,1735258250012,-153.0885098,0.00016247,2]
[346739724,1735258250021,-2119.06667986,0.00016363,2]
[346739725,1735258250031,-500.0,0.00016438,2]
[346739726,1735258250040,-200.0,0.00016438,2]
[346739727,1735258250049,-500.0,0.00016438,2]
[346739728,1735258250059,-315.8,0.00016438,2]
[346739729,1735258250069,-185.50789991,0.00016438,2]
[346739730,1735258250078,-500.0,0.00016462,2]
[346739731,1735258250088,-4828.29,0.00016462,2]
[346739732,1735258250097,-2652.63,0.00016462,2]
[346739733,1735258250106,-500.0,0.00016462,2]
[346739734,1735258250117,-517.75,0.00016462,2]
[346739735,1735258250126,-500.0,0.00016463,2]
[346739736,1735258250137,-500.0,0.00016463,2]
[346739737,1735258250148,-641.65,0.00016463,2]
[346739738,1735258250157,-805.04,0.00016463,2]
[346739739,1735258250166,-500.0,0.00016463,2]
[346739740,1735258250176,-823.2,0.00016463,2]
[346739741,1735258250186,-500.0,0.00016463,2]
[346739742,1735258250197,-610.0,0.00016463,2]
[346739743,1735258250206,-500.0,0.00016463,2]
[346739744,1735258250216,-869.91,0.00016463,2]
[346739745,1735258250227,-500.0,0.00016463,2]
[346739746,1735258250236,-761.91,0.00016463,2]
[346739747,1735258250246,-500.0,0.00016463,2]
[346739748,1735258250255,-1506.17,0.00016463,2]
[346739749,1735258250265,-583.85,0.00016463,2]
[346739750,1735258250275,-521.29,0.00016463,2]
[346739751,1735258250284,-630.67,0.00016463,2]
[346739752,1735258250293,-634.49,0.00016463,2]
[346739753,1735258250305,-698.15,0.00016463,2]
[346739754,1735258250315,-764.49,0.00016463,2]
[346739755,1735258250323,-1033.19,0.00016463,2]
[346739756,1735258250333,-500.0,0.00016463,2]
[346739757,1735258250342,-1125.11,0.00016463,2]
[346739758,1735258250351,-500.0,0.00016463,2]
[346739759,1735258250360,-806.8,0.00016463,2]
[346739760,1735258250370,-500.0,0.00016463,2]
[346739761,1735258250379,-500.0,0.00016463,2]
[346739762,1735258250388,-500.0,0.00016463,2]
[346739763,1735258250397,-500.0,0.00016463,2]
[346739764,1735258250407,-605.5,0.00016463,2]
[346739765,1735258250416,-151.0,0.00016464,2]
[346739766,1735258250425,-19598.21,0.00016464,2]
[346739767,1735258250435,-737.31,0.00016464,2]
[346739768,1735258250444,-500.0,0.00016465,2]
[346739769,1735258250453,-745.7,0.00016465,2]
[346739770,1735258250462,-541.56,0.00016465,2]
[346739771,1735258250473,-500.0,0.00016465,2]
[346739772,1735258250483,-1228.72,0.00016465,2]
[346739773,1735258250492,-500.0,0.00016465,2]
[346739774,1735258250502,-645.88,0.00016465,2]
[346739775,1735258250511,-829.78,0.00016465,2]
[346739776,1735258250520,-500.0,0.00016476,2]
[346739777,1735258250529,-500.0,0.00016476,2]
[346739778,1735258250539,-546.86,0.00016476,2]
[346739779,1735258250548,-1897.86,0.00016476,2]
[346739780,1735258250558,-567.61,0.00016476,2]
[346739781,1735258250567,-535.63,0.00016476,2]
[346739782,1735258250578,-500.0,0.00016477,2]
[346739783,1735258250589,-529.08,0.00016477,2]
[346739784,1735258250599,-1124.18,0.00016477,2]
[346739785,1735258250608,-151.0,0.00016477,2]
[346739786,1735258250617,-500.0,0.00016477,2]
[346739787,1735258250627,-751.23,0.00016477,2]
[346739788,1735258250636,-1067.53,0.00016477,2]
[346739789,1735258250646,-660.7,0.00016477,2]
[346739790,1735258250656,-546.97,0.00016477,2]
[346739791,1735258250665,-500.0,0.00016477,2]
[346739792,1735258250676,-562.36,0.00016477,2]
[346739793,1735258250686,-878.96,0.00016477,2]
[346739794,1735258250695,-500.0,0.00016478,2]
[346739795,1735258250705,-500.0,0.00016516,2]
[346739796,1735258250714,-10231.13,0.00016516,2]
[346739797,1735258250724,-9072.08,0.00016518,2]
[346739798,1735258250734,-649.87638299,0.00016714,2]
[346739799,1735258250743,-500.0,0.00016736,2]
[346739800,1735258250752,-4828.29,0.00016736,2]
[346739801,1735258250762,-2652.63,0.00016736,2]
[346739802,1735258250771,-500.0,0.00016736,2]
[346739803,1735258250781,-517.75,0.00016736,2]
[346739804,1735258250790,-500.0,0.00016737,2]
[346739805,1735258250799,-557.90761671,0.00016737,2]
[346739806,1735258250809,-641.65,0.00016737,2]
[346739807,1735258250818,-805.04,0.00016737,2]
[346739808,1735258250828,-209.08,0.00016737,2]
[346739809,1735258250837,-823.2,0.00016737,2]
[346739810,1735258250846,-500.0,0.00016737,2]
[346739811,1735258250855,-610.0,0.00016737,2]
[346739812,1735258250865,-500.0,0.00016737,2]
[346739813,1735258250874,-869.91,0.00016737,2]
[346739814,1735258250884,-500.0,0.00016737,2]
[346739815,1735258250893,-761.91,0.00016737,2]
[346739816,1735258250903,-500.0,0.00016737,2]
[346739817,1735258250913,-1506.17,0.00016737,2]
[346739818,1735258250922,-583.85,0.00016737,2]
[346739819,1735258250931,-521.29,0.00016737,2]
[346739820,1735258250941,-630.67,0.00016737,2]
[346739821,1735258250950,-634.49,0.00016737,2]
[346739822,1735258250960,-698.15,0.00016737,2]
[346739823,1735258250970,-764.49,0.00016737,2]
[346739824,1735258250980,-1033.19,0.00016737,2]
[346739825,1735258250990,-500.0,0.00016737,2]
[346739826,1735258251000,-1125.11,0.00016737,2]
[346739827,1735258251010,-500.0,0.00016737,2]
[346739828,1735258251019,-806.8,0.00016737,2]
[346739829,1735258251029,-500.0,0.00016737,2]
[346739830,1735258251038,-500.0,0.00016737,2]
[346739831,1735258251048,-500.0,0.00016737,2]
[346739832,1735258251057,-500.0,0.00016737,2]
[346739833,1735258251066,-605.5,0.00016737,2]
[346739834,1735258251075,-19598.21,0.00016738,2]
[346739835,1735258251085,-737.31,0.00016738,2]
[346739836,1735258251094,-350.25815674,0.00016739,2]
[346739837,1735258251104,-745.7,0.00016739,2]
[346739838,1735258251113,-541.56,0.00016739,2]
[346739839,1735258251123,-337.39,0.00016739,2]
[346739840,1735258251133,-1228.72,0.00016739,2]
[346739841,1735258251143,-500.0,0.00016739,2]
[346739842,1735258251152,-645.88,0.00016739,2]
[346739843,1735258251162,-829.78,0.00016739,2]
[346739844,1735258251171,-500.0,0.0001675,2]
[346739845,1735258251181,-500.0,0.0001675,2]
[346739846,1735258251191,-546.86,0.0001675,2]
[346739847,1735258251201,-1897.86,0.0001675,2]
[346739848,1735258251210,-567.61,0.0001675,2]
[346739849,1735258251220,-535.63,0.0001675,2]
[346739850,1735258251230,-589.83,0.00016751,2]
[346739851,1735258251240,-529.08,0.00016751,2]
[346739852,1735258251249,-1124.18,0.00016751,2]
[346739853,1735258251259,-500.0,0.00016751,2]
[346739854,1735258251268,-751.23,0.00016751,2]
[346739855,1735258251277,-1067.53,0.00016751,2]
[346739856,1735258251287,-660.7,0.00016751,2]
[346739857,1735258251296,-546.97,0.00016751,2]
[346739858,1735258251306,-562.36,0.00016751,2]
[346739859,1735258251315,-878.96,0.00016751,2]
[346739860,1735258251395,-500.0,0.0001679,2]
[346739861,1735258251406,-10231.13,0.0001679,2]
[346739862,1735258251416,-9072.08,0.00016792,2]
[346739863,1735258251426,-151.0,0.00016793,2]
[346739864,1735258251436,-259.0,0.0001687,2]
[346739865,1735258251446,-228.7291852,0.00016894,2]
[346739866,1735258251456,-5283.75256663,0.00016918,2]
[346739867,1735258251466,-7668.0,0.00017,7]
[346739868,1735258251476,-500.0,0.0001701,2]
[346739869,1735258251486,-4828.29,0.0001701,2]
[346739870,1735258251496,-2652.63,0.0001701,2]
[346739871,1735258251506,-161.43050951,0.0001701,2]
[346739872,1735258251516,-517.75,0.0001701,2]
[346739873,1735258251525,-500.0,0.00017011,2]
[346739874,1735258251536,-641.65,0.00017011,2]
[346739875,1735258251546,-805.04,0.00017011,2]
[346739876,1735258251557,-823.2,0.00017011,2]
[346739877,1735258251567,-500.0,0.00017011,2]
[346739878,1735258251577,-610.0,0.00017011,2]
[346739879,1735258251587,-500.0,0.00017011,2]
[346739880,1735258251596,-869.91,0.00017011,2]
[346739881,1735258251606,-500.0,0.00017011,2]
[346739882,1735258251616,-761.91,0.00017011,2]
[346739883,1735258251628,-500.0,0.00017011,2]
[346739884,1735258251638,-1506.17,0.00017011,2]
[346739885,1735258251648,-583.85,0.00017011,2]
[346739886,1735258251658,-521.29,0.00017011,2]
[346739887,1735258251668,-630.67,0.00017011,2]
[346739888,1735258251679,-634.49,0.00017011,2]
[346739889,1735258251689,-698.15,0.00017011,2]
[346739890,1735258251698,-764.49,0.00017011,2]
[346739891,1735258251708,-1033.19,0.00017011,2]
[346739892,1735258251717,-500.0,0.00017011,2]
[346739893,1735258251727,-1125.11,0.00017011,2]
[346739894,1735258251737,-500.0,0.00017011,2]
[346739895,1735258251747,-806.8,0.00017011,2]
[346739896,1735258251756,-500.0,0.00017011,2]
[346739897,1735258251766,-500.0,0.00017011,2]
[346739898,1735258251775,-500.0,0.00017011,2]
[346739899,1735258251785,-500.0,0.00017011,2]
[346739900,1735258251795,-605.5,0.00017011,2]
[346739901,1735258251804,-19598.21,0.00017012,2]
[346739902,1735258251814,-737.31,0.00017012,2]
[346739903,1735258251824,-745.7,0.00017013,2]
[346739904,1735258251833,-541.56,0.00017013,2]
[346739905,1735258251843,-1228.72,0.00017013,2]
[346739906,1735258251852,-500.0,0.00017013,2]
[346739907,1735258251862,-645.88,0.00017013,2]
[346739908,1735258251871,-829.78,0.00017013,2]
[346739909,1735258251881,-500.0,0.00017024,2]
[346739910,1735258251890,-500.0,0.00017024,2]
[346739911,1735258251899,-546.86,0.00017024,2]
[346739912,1735258251909,-1897.86,0.00017024,2]
[346739913,1735258251918,-567.61,0.00017024,2]
[346739914,1735258251928,-535.63,0.00017024,2]
[346739915,1735258251937,-529.08,0.00017025,2]
[346739916,1735258251947,-1124.18,0.00017025,2]
[346739917,1735258251956,-500.0,0.00017025,2]
[346739918,1735258251966,-751.23,0.00017025,2]
[346739919,1735258251975,-1067.53,0.00017025,2]
[346739920,1735258251986,-660.7,0.00017025,2]
[346739921,1735258251995,-546.97,0.00017025,2]
[346739922,1735258252005,-562.36,0.00017025,2]
[346739923,1735258252015,-878.96,0.00017025,2]
[346739924,1735258252024,-1000.0,0.00017026,2]
[346739925,1735258252034,-500.0,0.00017064,2]
[346739926,1735258252043,-10231.13,0.00017064,2]
[346739927,1735258252053,-9072.08,0.00017066,2]
[346739928,1735258252062,-150.708,0.00017216,2]
[346739929,1735258252072,-1955.0,0.00017216,2]
[346739930,1735258252081,-534.0,0.00017216,2]
[346739931,1735258252090,-2355.0,0.00017216,2]
[346739932,1735258252099,-500.0,0.00017284,2]
[346739933,1735258252110,-4828.29,0.00017284,2]
[346739934,1735258252120,-2652.63,0.00017284,2]
[346739935,1735258252129,-517.75,0.00017284,2]
[346739936,1735258252141,-500.0,0.00017285,2]
[346739937,1735258252150,-641.65,0.00017285,2]
[346739938,1735258252160,-805.04,0.00017285,2]
[346739939,1735258252169,-823.2,0.00017285,2]
[346739940,1735258252179,-500.0,0.00017285,2]
[346739941,1735258252189,-610.0,0.00017285,2]
[346739942,1735258252198,-500.0,0.00017285,2]
[346739943,1735258252208,-869.91,0.00017285,2]
[346739944,1735258252219,-500.0,0.00017285,2]
[346739945,1735258252228,-761.91,0.00017285,2]
[346739946,1735258252238,-500.0,0.00017285,2]
[346739947,1735258252247,-1506.17,0.00017285,2]
[346739948,1735258252256,-583.85,0.00017285,2]
[346739949,1735258252266,-521.29,0.00017285,2]
[346739950,1735258252276,-630.67,0.00017285,2]
[346739951,1735258252285,-634.49,0.00017285,2]
[346739952,1735258252295,-698.15,0.00017285,2]
[346739953,1735258252304,-764.49,0.00017285,2]
[346739954,1735258252314,-1033.19,0.00017285,2]
[346739955,1735258252323,-448.69,0.00017285,2]
[346739956,1735258252332,-1125.11,0.00017285,2]
[346739957,1735258252342,-500.0,0.00017285,2]
[346739958,1735258252351,-806.8,0.00017285,2]
[346739959,1735258252360,-500.0,0.00017285,2]
[346739960,1735258252370,-500.0,0.00017285,2]
[346739961,1735258252379,-500.0,0.00017285,2]
[346739962,1735258252389,-213.4733179,0.00017285,2]
[346739963,1735258252399,-605.5,0.00017285,2]
[346739964,1735258252409,-19598.21,0.00017286,2]
[346739965,1735258252418,-737.31,0.00017286,2]
[346739966,1735258252428,-745.7,0.00017287,2]
[346739967,1735258252437,-541.56,0.00017287,2]
[346739968,1735258252447,-1228.72,0.00017287,2]
[346739969,1735258252457,-500.0,0.00017287,2]
[346739970,1735258252466,-645.88,0.00017287,2]
[346739971,1735258252475,-829.78,0.00017287,2]
[346739972,1735258252486,-500.0,0.00017298,2]
[346739973,1735258252495,-500.0,0.00017298,2]
[346739974,1735258252504,-546.86,0.00017298,2]
[346739975,1735258252514,-1897.86,0.00017298,2]
[346739976,1735258252524,-567.61,0.00017298,2]
[346739977,1735258252533,-535.63,0.00017298,2]
[346739978,1735258252543,-529.08,0.00017299,2]
[346739979,1735258252553,-1124.18,0.00017299,2]
[346739980,1735258252562,-500.0,0.00017299,2]
[346739981,1735258252572,-751.23,0.00017299,2]
[346739982,1735258252582,-1067.53,0.00017299,2]
[346739983,1735258252591,-660.7,0.00017299,2]
[346739984,1735258252601,-546.97,0.00017299,2]
[346739985,1735258252612,-562.36,0.00017299,2]
[346739986,1735258252622,-878.96,0.00017299,2]
[346739987,1735258252632,-192.01,0.00017311,2]
[346739988,1735258252641,-157.0,0.00017311,2]
[346739989,1735258252651,-157.0,0.00017311,2]
[346739990,1735258252660,-157.0,0.00017311,2]
[346739991,1735258252669,-157.0,0.00017311,2]
[346739992,1735258252679,-157.0,0.00017311,2]
[346739993,1735258252689,-157.0,0.00017311,2]
[346739994,1735258252698,-163.57,0.00017311,2]
[346739995,1735258252707,-500.0,0.00017338,2]
[346739996,1735258252717,-10231.13,0.00017338,2]
[346739997,1735258252727,-9072.08,0.0001734,2]
[346739998,1735258252740,-150.11,0.00017478,2]
[346739999,1735258252749,-500.0,0.00017478,2]
[346740000,1735258252759,-500.0,0.00017478,2]
[346740001,1735258252768,-500.0,0.00017478,2]
[346740002,1735258252845,-150.11,0.00017478,2]
[346740003,1735258252855,-150.12,0.00017478,2]
[346740004,1735258252865,-500.0,0.00017478,2]
[346740005,1735258252876,-150.11,0.00017478,2]
[346740006,1735258252886,-500.0,0.00017478,2]
[346740007,1735258252895,-500.0,0.00017478,2]
[346740008,1735258252905,-150.11,0.00017478,2]
[346740009,1735258252915,-150.11,0.00017478,2]
[346740010,1735258252924,-150.11,0.00017478,2]
[346740011,1735258252934,-3128.0,0.00017525,2]
[346740012,1735258252944,-500.0,0.00017558,2]
[346740013,1735258252954,-4828.29,0.00017558,2]
[346740014,1735258252963,-2652.63,0.00017558,2]
[346740015,1735258252973,-517.75,0.00017558,2]
[346740016,1735258252982,-500.0,0.00017559,2]
[346740017,1735258252991,-641.65,0.00017559,2]
[346740018,1735258253001,-805.04,0.00017559,2]
[346740019,1735258253010,-823.2,0.00017559,2]
[346740020,1735258253019,-500.0,0.00017559,2]
[346740021,1735258253029,-610.0,0.00017559,2]
[346740022,1735258253038,-500.0,0.00017559,2]
[346740023,1735258253047,-869.91,0.00017559,2]
[346740024,1735258253056,-500.0,0.00017559,2]
[346740025,1735258253066,-761.91,0.00017559,2]
[346740026,1735258253075,-500.0,0.00017559,2]
[346740027,1735258253084,-1506.17,0.00017559,2]
[346740028,1735258253094,-583.85,0.00017559,2]
[346740029,1735258253104,-521.29,0.00017559,2]
[346740030,1735258253113,-630.67,0.00017559,2]
[346740031,1735258253123,-634.49,0.00017559,2]
[346740032,1735258253132,-698.15,0.00017559,2]
[346740033,1735258253142,-764.49,0.00017559,2]
[346740034,1735258253151,-1033.19,0.00017559,2]
[346740035,1735258253161,-1125.11,0.00017559,2]
[346740036,1735258253171,-500.0,0.00017559,2]
[346740037,1735258253180,-806.8,0.00017559,2]
[346740038,1735258253190,-500.0,0.00017559,2]
[346740039,1735258253200,-500.0,0.00017559,2]
[346740040,1735258253210,-500.0,0.00017559,2]
[346740041,1735258253219,-605.5,0.00017559,2]
[346740042,1735258253229,-151.0,0.0001756,2]
[346740043,1735258253239,-19598.21,0.0001756,2]
[346740044,1735258253248,-737.31,0.0001756,2]
[346740045,1735258253257,-745.7,0.00017561,2]
[346740046,1735258253266,-541.56,0.00017561,2]
[346740047,1735258253276,-1228.72,0.00017561,2]
[346740048,1735258253285,-500.0,0.00017561,2]
[346740049,1735258253295,-645.88,0.00017561,2]
[346740050,1735258253305,-829.78,0.00017561,2]
[346740051,1735258253314,-500.0,0.00017572,2]
[346740052,1735258253324,-500.0,0.00017572,2]
[346740053,1735258253335,-546.86,0.00017572,2]
[346740054,1735258253345,-1897.86,0.00017572,2]
[346740055,1735258253354,-567.61,0.00017572,2]
[346740056,1735258253364,-535.63,0.00017572,2]
[346740057,1735258253373,-529.08,0.00017573,2]
[346740058,1735258253383,-1124.18,0.00017573,2]
[346740059,1735258253392,-500.0,0.00017573,2]
[346740060,1735258253402,-751.23,0.00017573,2]
[346740061,1735258253411,-1067.53,0.00017573,2]
[346740062,1735258253420,-660.7,0.00017573,2]
[346740063,1735258253430,-546.97,0.00017573,2]
[346740064,1735258253440,-562.36,0.00017573,2]
[346740065,1735258253450,-878.96,0.00017573,2]
[346740066,1735258253472,-252.5,0.00017599,2]
[346740067,1735258253482,-161.0,0.00017599,2]
[346740068,1735258253493,-161.0,0.00017599,2]
[346740069,1735258253502,-161.0,0.00017599,2]
[346740070,1735258253513,-301.54,0.00017599,2]
[346740071,1735258253523,-151.0,0.000176,2]
[346740072,1735258253534,-500.0,0.00017612,2]
[346740073,1735258253545,-10231.13,0.00017612,2]
[346740074,1735258253555,-9072.08,0.00017614,2]
[346740075,1735258253565,-151.0,0.00017652,2]
[346740076,1735258253576,-649.87638299,0.00017652,2]
[346740077,1735258253586,-150.0,0.000177,2]
[346740078,1735258253596,-155.0,0.00017735,2]
[346740079,1735258253605,-155.0,0.00017735,2]
[346740080,1735258253615,-155.0,0.00017735,2]
[346740081,1735258253625,-155.0,0.00017735,2]
[346740082,1735258253635,-155.0,0.00017735,2]
[346740083,1735258253645,-155.0,0.00017735,2]
[346740084,1735258253655,-155.0,0.00017735,2]
[346740085,1735258253665,-155.0,0.00017735,2]
[346740086,1735258253675,-155.0,0.00017735,2]
[346740087,1735258253684,-155.0,0.00017735,2]
[346740088,1735258253694,-155.0,0.00017735,2]
[346740089,1735258253703,-155.0,0.00017735,2]
[346740090,1735258253713,-155.0,0.00017735,2]
[346740091,1735258253723,-155.0,0.00017735,2]
[346740092,1735258253733,-155.0,0.00017735,2]
[346740093,1735258253742,-155.0,0.00017735,2]
[346740094,1735258253752,-155.0,0.00017735,2]
[346740095,1735258253763,-155.0,0.00017735,2]
[346740096,1735258253773,-155.0,0.00017735,2]
[346740097,1735258253782,-155.0,0.00017735,2]
[346740098,1735258253792,-152.48,0.00017735,2]
[346740099,1735258253802,-150.11,0.00017752,2]
[346740100,1735258253812,-500.0,0.00017752,2]
[346740101,1735258253821,-812.29002574,0.00017752,2]